[Event "*** Titled Tuesday Blitz"]
[Site "Chess.com"]
[Date "2020.02.04"]
[Round "5"]
[White "Dynamikus"]
[Black "Volodar_Murzin"]
[Result "0-1"]
[WhiteElo "2768"]
[BlackElo "2645"]
[TimeControl "180+2"]
[EndTime "14:06:43 PST"]
[Termination "Volodar_Murzin won by resignation"]

1. Nf3 {[%clk 0:03:01.9]} 1... d5 {[%clk 0:02:59.6]} 2. c4 {[%clk 0:03:03.8]}
2... c6 {[%clk 0:02:59.2]} 3. e3 {[%clk 0:03:04.7]} 3... Nf6 {[%clk 0:02:59.3]}
4. Nc3 {[%clk 0:03:05.9]} 4... a6 {[%clk 0:03:00.4]} 5. d4 {[%clk 0:03:01.9]}
5... e6 {[%clk 0:02:57.7]} 6. b3 {[%clk 0:03:01.2]} 6... Bb4 {[%clk 0:02:56.9]}
7. Bd2 {[%clk 0:03:02.9]} 7... O-O {[%clk 0:02:55.9]} 8. Bd3 {[%clk 0:03:04.5]}
8... Nbd7 {[%clk 0:02:56.8]} 9. O-O {[%clk 0:03:05.6]} 9... Qe7 {[%clk 0:02:58]}
10. Qc2 {[%clk 0:03:05.1]} 10... b6 {[%clk 0:02:41.5]} 11. Ne5 {[%clk
0:02:57.8]} 11... Bb7 {[%clk 0:02:17.3]} 12. Nxd7 {[%clk 0:02:57]} 12... Qxd7
{[%clk 0:02:17.7]} 13. Nxd5 {[%clk 0:02:54.3]} 13... exd5 {[%clk 0:01:51]} 14.
Bxb4 {[%clk 0:02:54.2]} 14... dxc4 {[%clk 0:01:52.3]} 15. bxc4 {[%clk
0:02:53.6]} 15... c5 {[%clk 0:01:53.5]} 16. Ba3 {[%clk 0:02:22.8]} 16... Rfd8
{[%clk 0:01:33]} 17. d5 {[%clk 0:02:21.5]} 17... Nxd5 {[%clk 0:01:33.8]} 18.
Bxh7+ {[%clk 0:02:17.4]} 18... Kh8 {[%clk 0:01:34.7]} 19. Bf5 {[%clk 0:02:14]}
19... Nb4 {[%clk 0:01:35.2]} 20. Bxb4 {[%clk 0:02:09.3]} 20... Qc6 {[%clk
0:01:36.1]} 21. f3 {[%clk 0:01:56.4]} 21... cxb4 {[%clk 0:01:36.8]} 22. Rad1
{[%clk 0:01:51.9]} 22... Qc5 {[%clk 0:01:31.1]} 23. Kf2 {[%clk 0:01:40]} 23...
a5 {[%clk 0:00:55.1]} 24. Be4 {[%clk 0:01:29.9]} 24... Re8 {[%clk 0:00:47.4]}
25. Rd4 {[%clk 0:01:05.5]} 25... Bxe4 {[%clk 0:00:43.7]} 26. Rxe4 {[%clk
0:01:07.4]} 26... f5 {[%clk 0:00:42.9]} 27. Rd4 {[%clk 0:00:52.8]} 27... f4
{[%clk 0:00:23.4]} 28. Rxf4 {[%clk 0:00:48.1]} 28... Qxe3+ {[%clk 0:00:24]} 29.
Kg3 {[%clk 0:00:49.1]} 29... Re6 {[%clk 0:00:25.2]} 30. Rd1 {[%clk 0:00:41.4]}
30... Rh6 {[%clk 0:00:15.6]} 31. Rd5 {[%clk 0:00:33.1]} 31... Qe1+ {[%clk
0:00:11.7]} 32. Qf2 {[%clk 0:00:33.8]} 32... Rg6+ {[%clk 0:00:12.8]} 33. Rg4
{[%clk 0:00:32.4]} 33... Rxg4+ {[%clk 0:00:13.7]} 34. fxg4 {[%clk 0:00:34.3]}
34... Qc3+ {[%clk 0:00:11.2]} 35. Qf3 {[%clk 0:00:33.3]} 35... Rc8 {[%clk
0:00:11.8]} 36. g5 {[%clk 0:00:21.2]} 36... Qxc4 {[%clk 0:00:08.5]} 37. g6
{[%clk 0:00:17.5]} 37... Qc3 {[%clk 0:00:05.7]} 38. Rd3 {[%clk 0:00:16.3]} 38...
Qxd3 {[%clk 0:00:06.6]} 39. Qxd3 {[%clk 0:00:16]} 39... Rc3 {[%clk 0:00:08]} 40.
Qf3 {[%clk 0:00:16.2]} 40... a4 {[%clk 0:00:07]} 41. Kf2 {[%clk 0:00:14.6]}
41... Rxf3+ {[%clk 0:00:08.1]} 42. gxf3 {[%clk 0:00:16.5]} 42... b3 {[%clk
0:00:09.4]} 0-1

[Event "*** Titled Tuesday Blitz"]
[Site "Chess.com"]
[Date "2020.02.04"]
[Round "5"]
[White "Region_07"]
[Black "maciek_92"]
[Result "1-0"]
[WhiteElo "2501"]
[BlackElo "2819"]
[TimeControl "180+2"]
[EndTime "14:06:47 PST"]
[Termination "Region_07 won by resignation"]

1. d4 {[%clk 0:03:01.9]} 1... f5 {[%clk 0:02:54.8]} 2. g4 {[%clk 0:02:51.8]}
2... d5 {[%clk 0:02:49.4]} 3. Bf4 {[%clk 0:02:37.2]} 3... Nc6 {[%clk 0:02:46.5]}
4. e3 {[%clk 0:02:31]} 4... fxg4 {[%clk 0:02:35.8]} 5. h3 {[%clk 0:02:31.7]}
5... Nf6 {[%clk 0:02:37.1]} 6. Bd3 {[%clk 0:02:28.9]} 6... gxh3 {[%clk
0:02:05.3]} 7. Nxh3 {[%clk 0:02:28.1]} 7... Bg4 {[%clk 0:02:06.6]} 8. f3 {[%clk
0:02:26.1]} 8... Bxh3 {[%clk 0:02:08.1]} 9. Rxh3 {[%clk 0:02:27.3]} 9... Qd7
{[%clk 0:02:08.4]} 10. Bg6+ {[%clk 0:02:22]} 10... hxg6 {[%clk 0:02:04.4]} 11.
Rxh8 {[%clk 0:02:23.2]} 11... O-O-O {[%clk 0:01:59.1]} 12. Nc3 {[%clk
0:02:21.7]} 12... Nh5 {[%clk 0:01:46.4]} 13. Qd3 {[%clk 0:01:55.2]} 13... Qh3
{[%clk 0:01:08.9]} 14. O-O-O {[%clk 0:01:51.4]} 14... Nb4 {[%clk 0:01:10.3]} 15.
Qb5 {[%clk 0:01:26.6]} 15... Nc6 {[%clk 0:00:44.9]} 16. Na4 {[%clk 0:01:01]}
16... e6 {[%clk 0:00:34.2]} 17. Rxf8 {[%clk 0:00:34.7]} 17... Rxf8 {[%clk
0:00:32.2]} 18. Nc5 {[%clk 0:00:35.8]} 18... e5 {[%clk 0:00:15.6]} 19. Qxb7+
{[%clk 0:00:35.4]} 19... Kd8 {[%clk 0:00:17]} 20. dxe5 {[%clk 0:00:23.8]} 20...
Nxf4 {[%clk 0:00:15.2]} 21. exf4 {[%clk 0:00:20.1]} 21... Ne7 {[%clk 0:00:15.5]}
22. Qb8+ {[%clk 0:00:18.7]} 22... Qc8 {[%clk 0:00:08.9]} 23. Ne6+ {[%clk
0:00:19]} 23... Ke8 {[%clk 0:00:09.5]} 24. Qxc8+ {[%clk 0:00:19.4]} 24... Nxc8
{[%clk 0:00:09.7]} 25. Nxf8 {[%clk 0:00:21.3]} 25... Kxf8 {[%clk 0:00:11.6]} 26.
Rxd5 {[%clk 0:00:22.1]} 26... Ke7 {[%clk 0:00:13.5]} 27. Ra5 {[%clk 0:00:21.6]}
27... Ke6 {[%clk 0:00:14]} 28. Rc5 {[%clk 0:00:18.7]} 28... Kd7 {[%clk
0:00:12.8]} 29. b4 {[%clk 0:00:17.9]} 29... Ne7 {[%clk 0:00:13.7]} 30. b5 {[%clk
0:00:18.5]} 30... Nf5 {[%clk 0:00:13.9]} 31. Rc6 {[%clk 0:00:19.5]} 31... Ne7
{[%clk 0:00:14.1]} 32. Rc4 {[%clk 0:00:19.8]} 32... Nf5 {[%clk 0:00:14.7]} 33.
a4 {[%clk 0:00:19.8]} 33... Nh4 {[%clk 0:00:10.7]} 34. Rc3 {[%clk 0:00:20.1]}
34... Ng2 {[%clk 0:00:11.6]} 35. Rc4 {[%clk 0:00:19.9]} 35... Nh4 {[%clk
0:00:10.4]} 36. Rc6 {[%clk 0:00:19.9]} 36... Kc8 {[%clk 0:00:05.8]} 37. a5
{[%clk 0:00:20]} 37... Kb7 {[%clk 0:00:06.8]} 38. a6+ {[%clk 0:00:20.2]} 38...
Kc8 {[%clk 0:00:08.1]} 39. Kb2 {[%clk 0:00:19.3]} 39... Kd7 {[%clk 0:00:09.7]}
40. Kc3 {[%clk 0:00:19.1]} 40... Kc8 {[%clk 0:00:11.2]} 41. Kc4 {[%clk
0:00:17.6]} 41... Kd8 {[%clk 0:00:12.2]} 42. Kd5 {[%clk 0:00:17.5]} 42... Nf5
{[%clk 0:00:13]} 43. Rc3 {[%clk 0:00:13.8]} 43... Kd7 {[%clk 0:00:13.4]} 44. e6+
{[%clk 0:00:13.9]} 44... Kc8 {[%clk 0:00:14.4]} 45. Ke5 {[%clk 0:00:14.1]} 45...
Kd8 {[%clk 0:00:13.4]} 46. Rd3+ {[%clk 0:00:14.6]} 46... Ke8 {[%clk 0:00:14.3]}
47. Rd7 {[%clk 0:00:15.3]} 47... Nd6 {[%clk 0:00:11.2]} 48. Rxd6 {[%clk
0:00:15.9]} 48... cxd6+ {[%clk 0:00:13.1]} 49. Kxd6 {[%clk 0:00:17.2]} 1-0

[Event "*** Titled Tuesday Blitz"]
[Site "Chess.com"]
[Date "2020.02.04"]
[Round "5"]
[White "XiaoKangZhong"]
[Black "Witik"]
[Result "1-0"]
[WhiteElo "2363"]
[BlackElo "2584"]
[TimeControl "180+2"]
[EndTime "14:06:49 PST"]
[Termination "XiaoKangZhong won by resignation"]

1. e4 {[%clk 0:03:01.9]} 1... c6 {[%clk 0:02:58.1]} 2. Nc3 {[%clk 0:02:57]} 2...
d6 {[%clk 0:02:58.1]} 3. Nf3 {[%clk 0:02:56.2]} 3... h6 {[%clk 0:02:58.8]} 4. d4
{[%clk 0:02:56.7]} 4... g5 {[%clk 0:02:59.4]} 5. Be2 {[%clk 0:02:55.2]} 5... Bg7
{[%clk 0:02:59.7]} 6. Be3 {[%clk 0:02:55.9]} 6... Nd7 {[%clk 0:03:00.6]} 7. Rc1
{[%clk 0:02:48.3]} 7... Nf8 {[%clk 0:02:57.7]} 8. O-O {[%clk 0:02:44]} 8... Ng6
{[%clk 0:02:58.7]} 9. b3 {[%clk 0:02:37.3]} 9... g4 {[%clk 0:02:59]} 10. Ne1
{[%clk 0:02:37.4]} 10... h5 {[%clk 0:03:00.4]} 11. Nb1 {[%clk 0:02:34.6]} 11...
Nf6 {[%clk 0:02:58.7]} 12. Qd3 {[%clk 0:02:33.6]} 12... h4 {[%clk 0:02:57.9]}
13. c4 {[%clk 0:02:31.5]} 13... g3 {[%clk 0:02:51]} 14. f4 {[%clk 0:02:24.5]}
14... gxh2+ {[%clk 0:02:36.2]} 15. Kxh2 {[%clk 0:02:25.4]} 15... h3 {[%clk
0:02:36.2]} 16. g3 {[%clk 0:02:26.2]} 16... Ng4+ {[%clk 0:02:30.7]} 17. Bxg4
{[%clk 0:02:26.5]} 17... Bxg4 {[%clk 0:02:32.6]} 18. f5 {[%clk 0:02:18]} 18...
Nf8 {[%clk 0:02:28.9]} 19. Rf4 {[%clk 0:02:13]} 19... Bh5 {[%clk 0:02:14.9]} 20.
g4 {[%clk 0:02:12.9]} 20... e5 {[%clk 0:02:15.9]} 21. fxe6 {[%clk 0:01:59.3]}
21... Nxe6 {[%clk 0:02:16.4]} 22. gxh5 {[%clk 0:02:00.4]} 22... Nxf4 {[%clk
0:02:15.5]} 23. Bxf4 {[%clk 0:02:01.2]} 23... Rxh5 {[%clk 0:02:05.3]} 24. Nc2
{[%clk 0:01:58.4]} 24... Qh4 {[%clk 0:01:40]} 25. Qg3 {[%clk 0:01:57.7]} 25...
O-O-O {[%clk 0:01:36.9]} 26. Qxh4 {[%clk 0:01:54.8]} 26... Rxh4 {[%clk
0:01:37.9]} 27. Bg5 {[%clk 0:01:56.1]} 27... Rxe4 {[%clk 0:01:29.7]} 28. Bxd8
{[%clk 0:01:56.9]} 28... Kxd8 {[%clk 0:01:31.6]} 29. Nc3 {[%clk 0:01:58.1]}
29... Rf4 {[%clk 0:01:25.9]} 30. Kg3 {[%clk 0:01:58.4]} 30... Rf6 {[%clk
0:00:30.8]} 31. Rh1 {[%clk 0:01:50.3]} 31... c5 {[%clk 0:00:24.8]} 32. dxc5
{[%clk 0:01:42.3]} 32... Rg6+ {[%clk 0:00:24.6]} 33. Kxh3 {[%clk 0:01:39.2]}
33... Bxc3 {[%clk 0:00:24.9]} 34. Rd1 {[%clk 0:01:40]} 34... Be5 {[%clk
0:00:18.4]} 35. Nb4 {[%clk 0:01:37.2]} 35... Kd7 {[%clk 0:00:13]} 36. Rd5 {[%clk
0:01:35.9]} 36... Ke6 {[%clk 0:00:11.4]} 37. cxd6 {[%clk 0:01:36.4]} 37... Bxd6
{[%clk 0:00:12.4]} 38. Nc2 {[%clk 0:01:37]} 38... Rg3+ {[%clk 0:00:12.7]} 39.
Kh4 {[%clk 0:01:38]} 39... Rg6 {[%clk 0:00:05.4]} 40. Nd4+ {[%clk 0:01:38.9]}
40... Kd7 {[%clk 0:00:07]} 41. Nf5 {[%clk 0:01:38.9]} 41... Kc6 {[%clk
0:00:07.6]} 42. Nd4+ {[%clk 0:01:36.9]} 42... Kc7 {[%clk 0:00:06.9]} 43. Nb5+
{[%clk 0:01:36.6]} 43... Kc6 {[%clk 0:00:08.1]} 44. Nxa7+ {[%clk 0:01:37.4]}
44... Kb6 {[%clk 0:00:08.6]} 45. Nc8+ {[%clk 0:01:38]} 45... Kc7 {[%clk
0:00:10]} 46. Nxd6 {[%clk 0:01:23.7]} 46... Rxd6 {[%clk 0:00:10.9]} 47. Rxd6
{[%clk 0:01:11.6]} 47... Kxd6 {[%clk 0:00:11.9]} 48. b4 {[%clk 0:01:13]} 48...
Ke5 {[%clk 0:00:11.3]} 49. Kg3 {[%clk 0:01:12.6]} 49... Kd4 {[%clk 0:00:12.5]}
50. c5 {[%clk 0:01:13.5]} 50... Ke3 {[%clk 0:00:09.5]} 51. Kg4 {[%clk
0:01:08.6]} 51... Ke4 {[%clk 0:00:09.4]} 52. Kg3 {[%clk 0:01:09.9]} 52... Ke3
{[%clk 0:00:08.5]} 53. b5 {[%clk 0:01:03]} 53... f5 {[%clk 0:00:09]} 54. Kg2
{[%clk 0:01:04]} 54... Ke2 {[%clk 0:00:08.1]} 55. Kg3 {[%clk 0:01:03.9]} 55...
Ke3 {[%clk 0:00:08.8]} 56. Kg2 {[%clk 0:01:04.6]} 56... Ke2 {[%clk 0:00:10.1]}
57. c6 {[%clk 0:01:05.8]} 57... bxc6 {[%clk 0:00:09.7]} 58. bxc6 {[%clk
0:01:06.2]} 58... f4 {[%clk 0:00:11.1]} 59. c7 {[%clk 0:01:05.6]} 59... f3+
{[%clk 0:00:13]} 60. Kg3 {[%clk 0:01:06.6]} 60... f2 {[%clk 0:00:14.6]} 61. c8=Q
{[%clk 0:01:07.8]} 61... f1=Q {[%clk 0:00:15.4]} 62. Qa6+ {[%clk 0:01:09]} 62...
Ke1 {[%clk 0:00:14.8]} 63. Qxf1+ {[%clk 0:01:10.9]} 63... Kxf1 {[%clk
0:00:14.7]} 64. a4 {[%clk 0:01:12.8]} 64... Ke2 {[%clk 0:00:16.6]} 65. a5 {[%clk
0:01:14.7]} 65... Kd3 {[%clk 0:00:18.2]} 66. a6 {[%clk 0:01:16.6]} 66... Kc4
{[%clk 0:00:20.1]} 67. a7 {[%clk 0:01:18.5]} 67... Kb5 {[%clk 0:00:22]} 68. a8=Q
{[%clk 0:01:20.4]} 1-0

[Event "*** Titled Tuesday Blitz"]
[Site "Chess.com"]
[Date "2020.02.04"]
[Round "5"]
[White "TigrVShlyape"]
[Black "Poghosyan_Suren"]
[Result "1-0"]
[WhiteElo "2836"]
[BlackElo "2667"]
[TimeControl "180+2"]
[EndTime "14:06:50 PST"]
[Termination "TigrVShlyape won by resignation"]

1. d4 {[%clk 0:03:01.9]} 1... Nf6 {[%clk 0:02:59.8]} 2. Nf3 {[%clk 0:03:02.9]}
2... c5 {[%clk 0:03:00.2]} 3. d5 {[%clk 0:03:02.1]} 3... e6 {[%clk 0:03:00.7]}
4. Nc3 {[%clk 0:03:02.7]} 4... exd5 {[%clk 0:03:01.4]} 5. Nxd5 {[%clk
0:03:03.3]} 5... Nxd5 {[%clk 0:03:02.3]} 6. Qxd5 {[%clk 0:03:04.1]} 6... Be7
{[%clk 0:03:03.3]} 7. e4 {[%clk 0:02:53.6]} 7... O-O {[%clk 0:03:02]} 8. Bc4
{[%clk 0:02:48.3]} 8... d6 {[%clk 0:03:02]} 9. O-O {[%clk 0:02:48.4]} 9... Nd7
{[%clk 0:03:00.2]} 10. Bb3 {[%clk 0:02:31.5]} 10... Nf6 {[%clk 0:02:57.5]} 11.
Qd3 {[%clk 0:02:31.4]} 11... Bg4 {[%clk 0:02:52.1]} 12. Bf4 {[%clk 0:02:26.2]}
12... Qb6 {[%clk 0:02:35]} 13. Nd2 {[%clk 0:02:26.2]} 13... Qc6 {[%clk
0:02:32.8]} 14. a4 {[%clk 0:02:13.1]} 14... Be6 {[%clk 0:02:21.2]} 15. c4 {[%clk
0:02:12.2]} 15... Ng4 {[%clk 0:02:16.4]} 16. Bc2 {[%clk 0:02:10.4]} 16... Ne5
{[%clk 0:02:16.5]} 17. Qe2 {[%clk 0:02:05]} 17... Qa6 {[%clk 0:02:11.8]} 18. b3
{[%clk 0:02:05.1]} 18... Nc6 {[%clk 0:02:12.1]} 19. Rad1 {[%clk 0:01:49.9]}
19... Nd4 {[%clk 0:02:11.7]} 20. Qd3 {[%clk 0:01:50.9]} 20... f5 {[%clk
0:02:06.8]} 21. Bb1 {[%clk 0:01:42.9]} 21... Qc6 {[%clk 0:01:57.5]} 22. Be3
{[%clk 0:01:36.7]} 22... Bf6 {[%clk 0:01:56.9]} 23. Bxd4 {[%clk 0:01:23.7]}
23... Bxd4 {[%clk 0:01:57]} 24. Nf3 {[%clk 0:01:22.9]} 24... Be5 {[%clk
0:01:11.8]} 25. Nxe5 {[%clk 0:01:21.6]} 25... dxe5 {[%clk 0:01:13.7]} 26. exf5
{[%clk 0:01:22.9]} 26... Bxf5 {[%clk 0:01:14.2]} 27. Qd5+ {[%clk 0:01:23.9]}
27... Qxd5 {[%clk 0:01:15.2]} 28. Rxd5 {[%clk 0:01:24.7]} 28... Bxb1 {[%clk
0:01:06.9]} 29. Rxb1 {[%clk 0:01:25]} 29... b6 {[%clk 0:01:06.8]} 30. Re1 {[%clk
0:01:24.1]} 30... Rae8 {[%clk 0:00:59.8]} 31. Rexe5 {[%clk 0:01:22.9]} 31...
Rxe5 {[%clk 0:01:00.8]} 32. Rxe5 {[%clk 0:01:23.9]} 32... Rd8 {[%clk 0:01:02.7]}
33. g3 {[%clk 0:01:17.8]} 33... Kf7 {[%clk 0:01:00.5]} 34. Kg2 {[%clk
0:01:17.7]} 34... Kf6 {[%clk 0:01:01.7]} 35. Re3 {[%clk 0:01:17.7]} 35... g5
{[%clk 0:01:02.9]} 36. g4 {[%clk 0:01:15.8]} 36... Rd4 {[%clk 0:01:03.2]} 37.
Kg3 {[%clk 0:01:16.4]} 37... Rd2 {[%clk 0:01:04.2]} 38. f3 {[%clk 0:01:15.8]}
38... Rb2 {[%clk 0:01:02.7]} 39. h4 {[%clk 0:01:16.3]} 39... h6 {[%clk
0:01:03.7]} 40. h5 {[%clk 0:01:17.3]} 40... Rd2 {[%clk 0:01:02.9]} 41. Re8
{[%clk 0:01:12.7]} 41... Rd3 {[%clk 0:00:59]} 42. Rg8 {[%clk 0:01:11]} 42...
Rxb3 {[%clk 0:00:55.5]} 43. Rg6+ {[%clk 0:01:12]} 43... Kf7 {[%clk 0:00:57.4]}
44. Rxh6 {[%clk 0:01:13.1]} 44... Rb4 {[%clk 0:00:57.1]} 45. a5 {[%clk
0:01:11.1]} 45... bxa5 {[%clk 0:00:51.5]} 46. Ra6 {[%clk 0:01:11.1]} 46... a4
{[%clk 0:00:49.1]} 47. Rxa7+ {[%clk 0:01:11.2]} 47... Kf6 {[%clk 0:00:50.3]} 48.
Ra6+ {[%clk 0:01:11.6]} 48... Kf7 {[%clk 0:00:50.1]} 49. Ra7+ {[%clk 0:01:09.9]}
49... Kg8 {[%clk 0:00:50.5]} 50. f4 {[%clk 0:01:05.7]} 50... Rb3+ {[%clk
0:00:49.6]} 51. Kf2 {[%clk 0:01:06.1]} 51... gxf4 {[%clk 0:00:50.8]} 52. Rxa4
{[%clk 0:01:06]} 52... Rg3 {[%clk 0:00:50.7]} 53. Ra5 {[%clk 0:00:58]} 53...
Rxg4 {[%clk 0:00:50.8]} 54. Rxc5 {[%clk 0:00:59.5]} 54... Rg3 {[%clk 0:00:44.3]}
55. Rf5 {[%clk 0:00:59.9]} 55... Rc3 {[%clk 0:00:44.2]} 56. Rxf4 {[%clk
0:01:00.4]} 56... Kg7 {[%clk 0:00:45]} 57. Ke2 {[%clk 0:00:58.7]} 57... Kh6
{[%clk 0:00:46.2]} 58. Kd2 {[%clk 0:00:59.7]} 58... Rh3 {[%clk 0:00:43.4]} 59.
Rf5 {[%clk 0:01:00.7]} 59... Ra3 {[%clk 0:00:43.2]} 60. Kc2 {[%clk 0:01:01]}
60... Re3 {[%clk 0:00:43.5]} 61. Rd5 {[%clk 0:01:01.1]} 61... Ra3 {[%clk
0:00:41.9]} 62. c5 {[%clk 0:01:01]} 62... Kg7 {[%clk 0:00:37.7]} 63. c6 {[%clk
0:01:01.6]} 1-0

[Event "*** Titled Tuesday Blitz"]
[Site "Chess.com"]
[Date "2020.02.04"]
[Round "5"]
[White "olksuna"]
[Black "victormago"]
[Result "1-0"]
[WhiteElo "2581"]
[BlackElo "2418"]
[TimeControl "180+2"]
[EndTime "14:06:52 PST"]
[Termination "olksuna won by resignation"]

1. d4 {[%clk 0:02:10]} 1... Nf6 {[%clk 0:03:00]} 2. c4 {[%clk 0:02:10.3]} 2...
c5 {[%clk 0:03:00.9]} 3. d5 {[%clk 0:02:11.3]} 3... e6 {[%clk 0:03:01.2]} 4. Nc3
{[%clk 0:02:11.9]} 4... exd5 {[%clk 0:03:02.4]} 5. cxd5 {[%clk 0:02:13.8]} 5...
d6 {[%clk 0:03:03.9]} 6. e4 {[%clk 0:02:15.3]} 6... g6 {[%clk 0:03:04]} 7. f4
{[%clk 0:02:16.5]} 7... Bg7 {[%clk 0:03:03.7]} 8. Bb5+ {[%clk 0:02:18.1]} 8...
Nfd7 {[%clk 0:03:05]} 9. a4 {[%clk 0:02:19.2]} 9... O-O {[%clk 0:03:05.4]} 10.
Nf3 {[%clk 0:02:20.1]} 10... Na6 {[%clk 0:03:06.4]} 11. O-O {[%clk 0:02:21.6]}
11... Nb4 {[%clk 0:03:07.1]} 12. Re1 {[%clk 0:02:20]} 12... a6 {[%clk 0:03:08]}
13. Bf1 {[%clk 0:02:20.6]} 13... Nf6 {[%clk 0:03:02.2]} 14. h3 {[%clk
0:02:19.2]} 14... Re8 {[%clk 0:02:58.1]} 15. Qb3 {[%clk 0:02:17.1]} 15... b6
{[%clk 0:02:57.4]} 16. e5 {[%clk 0:02:11]} 16... dxe5 {[%clk 0:02:58.1]} 17.
fxe5 {[%clk 0:02:12.9]} 17... Nfxd5 {[%clk 0:02:55.3]} 18. Bg5 {[%clk
0:02:13.1]} 18... Ne7 {[%clk 0:02:48.5]} 19. Bc4 {[%clk 0:02:09.6]} 19... Rf8
{[%clk 0:02:49.2]} 20. Ne4 {[%clk 0:01:59.8]} 20... Qc7 {[%clk 0:02:39.1]} 21.
Nd6 {[%clk 0:01:58.1]} 21... Nf5 {[%clk 0:02:30.2]} 22. Rad1 {[%clk 0:01:53.5]}
22... Ra7 {[%clk 0:01:49]} 23. Nxf7 {[%clk 0:01:45.7]} 23... Rxf7 {[%clk
0:01:47.5]} 24. Rd8+ {[%clk 0:01:15.5]} 24... Bf8 {[%clk 0:01:48]} 25. Bxf7+
{[%clk 0:01:01.3]} 25... Qxf7 {[%clk 0:01:48.3]} 26. Qxf7+ {[%clk 0:01:02.8]}
26... Kxf7 {[%clk 0:01:48.6]} 27. Rxc8 {[%clk 0:01:04.2]} 27... Nc2 {[%clk
0:01:44.1]} 28. e6+ {[%clk 0:01:04]} 28... Kg7 {[%clk 0:01:42.6]} 29. Rd1 {[%clk
0:00:57.2]} 29... Ncd4 {[%clk 0:01:40.8]} 30. Nxd4 {[%clk 0:00:56.1]} 30... Nxd4
{[%clk 0:01:40]} 31. Re1 {[%clk 0:00:53.2]} 31... Be7 {[%clk 0:01:37.5]} 32.
Bxe7 {[%clk 0:00:42.5]} 32... Rxe7 {[%clk 0:01:37.8]} 33. Ra8 {[%clk 0:00:38.4]}
33... Nc2 {[%clk 0:01:04]} 34. Re4 {[%clk 0:00:33.2]} 34... Nb4 {[%clk
0:01:02.7]} 35. Rd8 {[%clk 0:00:26]} 35... Kf6 {[%clk 0:00:56.9]} 36. Rd6 {[%clk
0:00:26.4]} 36... b5 {[%clk 0:00:55.7]} 37. axb5 {[%clk 0:00:24.1]} 37... axb5
{[%clk 0:00:57.6]} 38. Rb6 {[%clk 0:00:25.7]} 38... Nd3 {[%clk 0:00:49.1]} 39.
Rxb5 {[%clk 0:00:24.5]} 39... Rxe6 {[%clk 0:00:50.3]} 40. Rxe6+ {[%clk
0:00:24.6]} 40... Kxe6 {[%clk 0:00:52.2]} 41. Rb7 {[%clk 0:00:25.7]} 41... h5
{[%clk 0:00:52.5]} 42. Kf1 {[%clk 0:00:27.1]} 42... Kd5 {[%clk 0:00:52.1]} 43.
Ke2 {[%clk 0:00:26.1]} 43... Nf4+ {[%clk 0:00:53]} 44. Kf3 {[%clk 0:00:27.1]}
44... Nd3 {[%clk 0:00:53.8]} 45. Ke3 {[%clk 0:00:21.2]} 45... Ne5 {[%clk
0:00:50.3]} 46. Kf4 {[%clk 0:00:20]} 46... Kd4 {[%clk 0:00:43.6]} 47. Kg5 {[%clk
0:00:19]} 47... c4 {[%clk 0:00:41.9]} 48. g4 {[%clk 0:00:19.2]} 48... hxg4
{[%clk 0:00:42.3]} 49. hxg4 {[%clk 0:00:21.1]} 49... Kd3 {[%clk 0:00:39.8]} 50.
Rb5 {[%clk 0:00:18.6]} 50... Nf3+ {[%clk 0:00:38.6]} 51. Kxg6 {[%clk 0:00:18.7]}
51... Nd2 {[%clk 0:00:40.5]} 52. g5 {[%clk 0:00:16.4]} 52... Kc2 {[%clk
0:00:41.7]} 53. Kf7 {[%clk 0:00:16.1]} 53... Nb3 {[%clk 0:00:43.4]} 54. g6
{[%clk 0:00:16.6]} 54... Kxb2 {[%clk 0:00:45.3]} 55. g7 {[%clk 0:00:17.8]} 55...
c3 {[%clk 0:00:47.2]} 56. g8=Q {[%clk 0:00:19.1]} 56... c2 {[%clk 0:00:49.1]}
57. Kf8 {[%clk 0:00:15.5]} 57... c1=Q {[%clk 0:00:51]} 58. Qxb3+ {[%clk
0:00:15.6]} 1-0